fUSD/lending_fUSD_20250221
["ID","MTS","AMOUNT","RATE_DAILY","PERIOD"]
[353947897,1740165032044,-269.16933669,0.0001,2]
[353947898,1740165032278,-213.33066331,0.0001,2]
[353947912,1740165037795,-127.45906715,0.0001,2]
[353947914,1740165037805,-250.0,0.00010012,2]
[353947915,1740165037814,-122.54093285,0.00010064,2]
[353947917,1740165037854,-220.03336443,0.00010064,2]
[353947918,1740165037863,-150.0,0.00010264,2]
[353947919,1740165037872,-150.0,0.00010356,2]
[353947920,1740165037881,-241.41872135,0.00010461,2]
[353947921,1740165037891,-101.15557592,0.00010461,2]
[353947922,1740165037900,-680.39,0.00010473,2]
[353947923,1740165037909,-403.69052555,0.000105,3]
[353947924,1740165037925,-196.30947445,0.000105,3]
[353947925,1740165037934,-1039.71384445,0.0001054,2]
[353947926,1740165037943,-150.0,0.00010541,2]
[353947927,1740165037952,-464.9078082,0.000106,3]
[353947928,1740165037965,-735.0921918,0.000106,3]
[353947929,1740165037974,-419.9078082,0.00010615,2]
[353947930,1740165037985,-580.0921918,0.00010615,2]
[353947931,1740165037995,-1800.0,0.000107,3]
[353947932,1740165038004,-150.0,0.00010726,2]
[353947933,1740165038013,-474.29409505,0.000108,3]
[353947934,1740165038032,-1925.70590495,0.000108,3]
[353947935,1740165038041,-150.0,0.00010818,2]
[353947936,1740165038052,-342.57429727,0.00010858,2]
[353947937,1740165038062,-3000.0,0.000109,3]
[353947938,1740165038071,-232.86162654,0.000109,2]
[353947939,1740165038081,-3054.36568,0.0001093,2]
[353947940,1740165038091,-610.13206607,0.00010932,2]
[353947941,1740165038102,-2631.46033393,0.00010932,2]
[353947942,1740165038112,-358.20702222,0.00010941,2]
[353947943,1740165038121,-150.0,0.00010956,2]
[353947944,1740165038131,-500.0,0.00010957,2]
[353947945,1740165038142,-500.0,0.00010957,2]
[353947946,1740165038153,-500.0,0.00010957,2]
[353947947,1740165038162,-500.0,0.00010957,2]
[353947948,1740165038172,-500.0,0.00010957,2]
[353947949,1740165038182,-165.57912809,0.00010957,2]
[353947950,1740165038192,-375.77978438,0.00010957,2]
[353947952,1740165038201,-500.0,0.00010957,2]
[353947954,1740165038211,-481.6318694,0.00010957,2]
[353947955,1740165038220,-500.0,0.00010957,2]
[353947957,1740165038230,-500.0,0.00010957,2]
[353947959,1740165038239,-500.0,0.00010957,2]
[353947961,1740165038249,-202.91838626,0.00010957,2]
[353947962,1740165038259,-500.0,0.00010957,2]
[353947963,1740165038270,-499.99999999,0.00010957,2]
[353947964,1740165038279,-731.51,0.00010958,2]
[353947965,1740165038289,-500.0,0.00010958,2]
[353947966,1740165038299,-500.0,0.00010958,2]
[353947967,1740165038308,-500.0,0.00010958,2]
[353947968,1740165038317,-500.0,0.00010958,2]
[353947969,1740165038328,-500.0,0.00010958,2]
[353947970,1740165038338,-500.0,0.00010958,2]
[353947971,1740165038348,-184.31774571,0.00010958,2]
[353947972,1740165038368,-315.68225429,0.00010958,2]
[353947973,1740165038589,-126.06436471,0.00010958,2]
[353947974,1740165038602,-373.93563529,0.00010958,2]
[353947975,1740165038611,-500.0,0.00010958,2]
[353947976,1740165038621,-500.0,0.00010958,2]
[353947977,1740165038631,-500.0,0.00010958,2]
[353947978,1740165038640,-573.35,0.00010958,2]
[353947979,1740165038650,-500.0,0.00010958,2]
[353947980,1740165038659,-500.0,0.00010958,2]
[353947981,1740165038668,-500.0,0.00010958,2]
[353947982,1740165038678,-500.0,0.00010958,2]
[353947983,1740165038687,-500.0,0.00010958,2]
[353947984,1740165038696,-500.0,0.00010958,2]
[353947985,1740165038705,-500.0,0.00010958,2]
[353947986,1740165038714,-327.84824906,0.00010958,2]
[353947987,1740165038726,-172.15175094,0.00010958,2]
[353947988,1740165038736,-500.0,0.00010958,2]
[353947989,1740165038745,-500.0,0.00010958,2]
[353947990,1740165038754,-500.0,0.00010958,2]
[353947991,1740165038764,-500.0,0.00010958,2]
[353947992,1740165038773,-500.0,0.00010958,2]
[353947993,1740165038782,-500.0,0.00010958,2]
[353947994,1740165038792,-500.0,0.00010958,2]
[353947995,1740165038801,-500.0,0.00010958,2]
[353947996,1740165038810,-500.0,0.00010958,2]
[353947997,1740165038820,-500.0,0.00010958,2]
[353947998,1740165038829,-500.0,0.00010958,2]
[353947999,1740165038839,-500.0,0.00010958,2]
[353948000,1740165038848,-500.0,0.00010958,2]
[353948001,1740165038858,-500.0,0.00010958,2]
[353948002,1740165038867,-500.0,0.00010958,2]
[353948003,1740165038876,-797.23,0.00010958,2]
[353948004,1740165038885,-627.5508868,0.00010958,2]
[353948005,1740165038895,-500.0,0.00010958,2]
[353948006,1740165038903,-500.0,0.00010958,2]
[353948007,1740165038913,-500.0,0.00010958,2]
[353948008,1740165038925,-500.0,0.00010958,2]
[353948009,1740165038934,-500.0,0.00010958,2]
[353948010,1740165038943,-500.0,0.00010958,2]
[353948011,1740165038952,-500.0,0.00010958,2]
[353948012,1740165038962,-500.0,0.00010958,2]
[353948013,1740165038971,-677.02,0.00010958,2]
[353948014,1740165038980,-65.20064152,0.00010958,2]
[353948015,1740165039386,-434.79935848,0.00010958,2]
[353948016,1740165039396,-500.0,0.00010958,2]
[353948017,1740165039405,-74.16075006,0.00010958,2]
[353948018,1740165039416,-425.83924994,0.00010958,2]
[353948019,1740165039426,-500.0,0.00010958,2]
[353948020,1740165039435,-500.0,0.00010958,2]
[353948021,1740165039444,-818.62,0.00010958,2]
[353948022,1740165039453,-500.0,0.00010958,2]
[353948023,1740165039463,-840.96,0.00010958,2]
[353948024,1740165039472,-502.50507815,0.00010958,2]
[353948025,1740165039481,-500.0,0.00010958,2]
[353948026,1740165039490,-500.0,0.00010958,2]
[353948027,1740165039499,-107.31286601,0.00010958,2]
[353948028,1740165039510,-392.68713399,0.00010958,2]
[353948029,1740165039520,-500.0,0.00010958,2]
[353948030,1740165039529,-500.0,0.00010958,2]
[353948031,1740165039538,-500.0,0.00010958,2]
[353948032,1740165039547,-500.0,0.00010958,2]
[353948033,1740165039557,-500.0,0.00010958,2]
[353948034,1740165039566,-500.0,0.00010958,2]
[353948035,1740165039576,-500.0,0.00010958,2]
[353948036,1740165039586,-500.0,0.00010958,2]
[353948037,1740165039595,-500.0,0.00010958,2]
[353948038,1740165039604,-38.50086601,0.00010958,2]
[353948039,1740165039617,-461.49913399,0.00010958,2]
[353948040,1740165039626,-325.40213026,0.00010958,2]
[353948041,1740165039637,-174.59786974,0.00010958,2]
[353948042,1740165039646,-303.72172944,0.00010958,2]
[353948043,1740165039657,-307.44606477,0.00010958,2]
[353948044,1740165039666,-500.0,0.00010958,2]
[353948045,1740165039676,-500.0,0.00010958,2]
[353948046,1740165039685,-500.0,0.00010958,2]
[353948047,1740165039694,-500.0,0.00010958,2]
[353948048,1740165039703,-500.0,0.00010958,2]
[353948049,1740165039712,-500.0,0.00010958,2]
[353948050,1740165039722,-500.0,0.00010958,2]
[353948051,1740165039731,-500.0,0.00010958,2]
[353948052,1740165039739,-500.51325432,0.00010958,2]
[353948053,1740165039749,-523.28199241,0.00010958,2]
[353948054,1740165039758,-500.0,0.00010958,2]
[353948055,1740165039767,-500.0,0.00010958,2]
[353948056,1740165039776,-485.96288646,0.00010958,2]
[353948057,1740165039788,-14.03711354,0.00010958,2]
[353948058,1740165039797,-575.33,0.00010958,2]
[353948059,1740165039806,-500.0,0.00010958,2]
[353948060,1740165039815,-500.0,0.00010958,2]
[353948061,1740165039824,-500.0,0.00010958,2]
[353948062,1740165039834,-500.0,0.00010958,2]
[353948063,1740165039843,-500.0,0.00010958,2]
[353948065,1740165039853,-500.0,0.00010958,2]
[353948066,1740165039863,-7203.316952,0.00010958,2]
[353948067,1740165039871,-316.69722343,0.00010958,2]
[353948069,1740165039881,-500.0,0.00010958,2]
[353948070,1740165039890,-500.0,0.00010958,2]
[353948071,1740165039899,-500.0,0.00010958,2]
[353948072,1740165039909,-500.0,0.00010958,2]
[353948073,1740165039922,-500.0,0.00010958,2]
[353948074,1740165039931,-249.11139155,0.00010958,2]
[353948075,1740165039940,-500.33690449,0.00010958,2]
[353948076,1740165039949,-500.0,0.00010958,2]
[353948077,1740165039960,-500.0,0.00010958,2]
[353948078,1740165039969,-500.0,0.00010958,2]
[353948079,1740165039979,-500.0,0.00010958,2]
[353948080,1740165039989,-500.0,0.00010958,2]
[353948081,1740165040000,-500.0,0.00010958,2]
[353948082,1740165040010,-500.0,0.00010958,2]
[353948083,1740165040020,-500.0,0.00010958,2]
[353948084,1740165040030,-500.0,0.00010958,2]
[353948085,1740165040040,-500.0,0.00010958,2]
[353948086,1740165040050,-500.0,0.00010958,2]
[353948087,1740165040059,-500.0,0.00010958,2]
[353948088,1740165040068,-1742.76,0.00010958,2]
[353948089,1740165040077,-500.0,0.00010958,2]
[353948090,1740165040088,-500.0,0.00010958,2]
[353948091,1740165040097,-500.0,0.00010958,2]
[353948092,1740165040106,-500.0,0.00010958,2]
[353948093,1740165040115,-500.0,0.00010958,2]
[353948094,1740165040125,-647.24243988,0.00010958,2]
[353948095,1740165040134,-500.0,0.00010958,2]
[353948096,1740165040143,-500.0,0.00010958,2]
[353948097,1740165040152,-505.66101073,0.00010958,2]
[353948098,1740165040161,-375.80892468,0.00010958,2]
[353948099,1740165040171,-500.0,0.00010958,2]
[353948100,1740165040179,-500.0,0.00010958,2]
[353948101,1740165040189,-500.0,0.00010958,2]
[353948102,1740165040198,-565.11,0.00010958,2]
[353948103,1740165040207,-500.0,0.00010958,2]
[353948104,1740165040217,-300.0,0.00010958,2]
[353948105,1740165040227,-1160.38,0.00010958,2]
[353948106,1740165040236,-500.0,0.00010958,2]
[353948107,1740165040245,-500.0,0.00010958,2]
[353948108,1740165040254,-500.0,0.00010958,2]
[353948109,1740165040263,-500.0,0.00010958,2]
[353948110,1740165040273,-500.0,0.00010958,2]
[353948111,1740165040282,-680.99,0.00010958,2]
[353948112,1740165040292,-642.95,0.00010958,2]
[353948113,1740165040301,-500.0,0.00010958,2]
[353948114,1740165040310,-500.0,0.00010958,2]
[353948115,1740165040319,-500.0,0.00010958,2]
[353948116,1740165040328,-626.89,0.00010958,2]
[353948117,1740165040339,-500.0,0.00010958,2]
[353948118,1740165040348,-1029.96,0.00010958,2]
[353948119,1740165040358,-209.46871488,0.00010958,2]
[353948120,1740165040368,-500.0,0.00010958,2]
[353948121,1740165040377,-500.0,0.00010958,2]
[353948122,1740165040386,-500.0,0.00010958,2]
[353948123,1740165040395,-500.0,0.00010958,2]
[353948125,1740165040404,-500.0,0.00010958,2]
[353948127,1740165040414,-500.0,0.00010958,2]
[353948129,1740165040423,-858.03,0.00010958,2]
[353948131,1740165040432,-500.0,0.00010958,2]
[353948133,1740165040441,-500.0,0.00010958,2]
[353948135,1740165040450,-502.89,0.00010958,2]
[353948137,1740165040459,-500.0,0.00010958,2]
[353948139,1740165040469,-589.86,0.00010958,2]
[353948141,1740165040478,-500.0,0.00010958,2]
[353948143,1740165040487,-500.0,0.00010958,2]
[353948145,1740165040497,-1194.6,0.00010958,2]
[353948147,1740165040506,-500.0,0.00010958,2]
[353948149,1740165040515,-500.0,0.00010958,2]
[353948151,1740165040524,-500.0,0.00010958,2]
[353948153,1740165040533,-500.0,0.00010958,2]
[353948156,1740165040542,-500.0,0.00010958,2]
[353948159,1740165040551,-500.0,0.00010958,2]
[353948162,1740165040560,-500.0,0.00010958,2]
[353948165,1740165040570,-500.0,0.00010958,2]
[353948168,1740165040580,-1339.27,0.00010958,2]
[353948171,1740165040589,-500.0,0.00010958,2]
[353948174,1740165040599,-697.33,0.00010958,2]
[353948177,1740165040607,-222.83983979,0.00010958,2]
[353948180,1740165040616,-500.0,0.00010958,2]
[353948182,1740165040625,-500.0,0.00010958,2]
[353948184,1740165040634,-150.18534709,0.00010958,2]
[353948186,1740165040643,-500.0,0.00010958,2]
[353948187,1740165040653,-414.18224421,0.00010958,2]
[353948189,1740165040662,-500.0,0.00010958,2]
[353948191,1740165040672,-500.0,0.00010958,2]
[353948193,1740165040681,-500.0,0.00010958,2]
[353948195,1740165040691,-500.0,0.00010958,2]
[353948197,1740165040701,-500.0,0.00010958,2]
[353948199,1740165040710,-500.0,0.00010958,2]
[353948201,1740165040719,-380.75216782,0.00010958,2]
[353948203,1740165040729,-500.0,0.00010958,2]
[353948205,1740165040738,-500.0,0.00010958,2]
[353948208,1740165040748,-589.93,0.00010958,2]
[353948210,1740165040758,-500.0,0.00010958,2]
[353948211,1740165040768,-500.0,0.00010958,2]
[353948213,1740165040777,-500.0,0.00010958,2]
[353948215,1740165040786,-500.0,0.00010958,2]
[353948217,1740165040795,-502.9536245,0.00010958,2]
[353948219,1740165040804,-500.0,0.00010958,2]
[353948221,1740165040813,-500.0,0.00010958,2]
[353948223,1740165040823,-500.0,0.00010958,2]
[353948225,1740165040832,-500.0,0.00010958,2]
[353948227,1740165040841,-500.0,0.00010958,2]
[353948229,1740165040850,-500.0,0.00010958,2]
[353948231,1740165040859,-500.0,0.00010958,2]
[353948233,1740165040867,-500.0,0.00010958,2]
[353948235,1740165040877,-500.0,0.00010958,2]
[353948237,1740165040886,-1218.86,0.00010958,2]
[353948239,1740165040895,-872.66,0.00010958,2]
[353948241,1740165040905,-500.0,0.00010958,2]
[353948243,1740165040914,-847.49,0.00010958,2]
[353948245,1740165040928,-500.0,0.00010958,2]
[353948247,1740165040936,-500.0,0.00010958,2]
[353948249,1740165040946,-210.46172286,0.00010958,2]
[353948251,1740165040954,-500.0,0.00010958,2]
[353948253,1740165040965,-500.0,0.00010958,2]
[353948255,1740165040975,-1152.78,0.00010958,2]
[353948257,1740165040984,-340.53906757,0.00010958,2]
[353948259,1740165040993,-500.0,0.00010958,2]
[353948261,1740165041004,-784.84,0.00010958,2]
[353948263,1740165041013,-651.21,0.00010958,2]
[353948265,1740165041023,-500.0,0.00010958,2]
[353948267,1740165041033,-811.75,0.00010958,2]
[353948269,1740165041043,-500.0,0.00010958,2]
[353948271,1740165041052,-500.0,0.00010958,2]
[353948273,1740165041061,-500.0,0.00010958,2]
[353948275,1740165041070,-1602.77,0.00010958,2]
[353948277,1740165041079,-500.0,0.00010958,2]
[353948279,1740165041090,-928.49,0.00010958,2]
[353948281,1740165041098,-1453.54,0.00010958,2]
[353948283,1740165041107,-500.0,0.00010958,2]
[353948285,1740165041116,-500.0,0.00010958,2]
[353948287,1740165041126,-1052.55,0.00010958,2]
[353948289,1740165041135,-654.12,0.00010958,2]
[353948291,1740165041144,-500.0,0.00010958,2]
[353948292,1740165041153,-600.59,0.00010958,2]
[353948294,1740165041162,-500.0,0.00010958,2]
[353948296,1740165041172,-500.0,0.00010958,2]
[353948299,1740165041181,-600.19,0.00010958,2]
[353948300,1740165041191,-500.0,0.00010958,2]
[353948303,1740165041200,-1557.94,0.00010958,2]
[353948304,1740165041210,-723.16,0.00010958,2]
[353948306,1740165041219,-500.0,0.00010958,2]
[353948308,1740165041228,-500.0,0.00010958,2]
[353948311,1740165041237,-621.99320723,0.00010958,2]
[353948312,1740165041246,-500.0,0.00010958,2]
[353948314,1740165041256,-973.86,0.00010958,2]
[353948316,1740165041266,-627.0,0.00010958,2]
[353948338,1740165041477,-597.11,0.00010958,2]
[353948339,1740165041488,-500.0,0.00010958,2]
[353948340,1740165041497,-1361.06,0.00010958,2]
[353948341,1740165041507,-500.0,0.00010958,2]
[353948342,1740165041515,-500.0,0.00010958,2]
[353948343,1740165041524,-507.40455917,0.00010958,2]
[353948344,1740165041534,-500.0,0.00010958,2]
[353948345,1740165041543,-500.0,0.00010958,2]
[353948346,1740165041553,-500.0,0.00010958,2]
[353948347,1740165041563,-545.63,0.00010958,2]
[353948348,1740165041573,-684.05,0.00010958,2]
[353948349,1740165041584,-508.67,0.00010958,2]
[353948350,1740165041594,-500.0,0.00010958,2]
[353948351,1740165041604,-865.33,0.00010958,2]
[353948352,1740165041614,-500.0,0.00010958,2]
[353948353,1740165041624,-565.87,0.00010958,2]
[353948354,1740165041634,-612.75,0.00010958,2]
[353948355,1740165041643,-523.64,0.00010958,2]
[353948356,1740165041652,-645.56,0.00010958,2]
[353948357,1740165041661,-961.54,0.00010958,2]
[353948358,1740165041670,-356.16,0.00010958,2]
[353948359,1740165041680,-842.47,0.00010958,2]
[353948360,1740165041690,-500.0,0.00010958,2]
[353948361,1740165041699,-500.0,0.00010958,2]
[353948362,1740165041708,-500.0,0.00010958,2]
[353948363,1740165041717,-500.0,0.00010958,2]
[353948364,1740165041727,-895.28,0.00010958,2]
[353948365,1740165041736,-500.0,0.00010958,2]
[353948366,1740165041745,-500.0,0.00010958,2]
[353948367,1740165041755,-793.32,0.00010958,2]
[353948368,1740165041765,-500.0,0.00010958,2]
[353948369,1740165041774,-500.0,0.00010958,2]
[353948370,1740165041784,-500.0,0.00010958,2]
[353948371,1740165041793,-514.87,0.00010958,2]
[353948372,1740165041803,-691.0,0.00010958,2]
[353948373,1740165041812,-500.0,0.00010958,2]
[353948374,1740165041822,-1112.36,0.00010958,2]
[353948375,1740165041831,-500.0,0.00010958,2]
[353948376,1740165041842,-840.51,0.00010958,2]
[353948377,1740165041851,-500.0,0.00010958,2]
[353948378,1740165041861,-500.0,0.00010958,2]
[353948379,1740165041872,-500.0,0.00010958,2]
[353948380,1740165041882,-500.0,0.00010958,2]
[353948381,1740165041892,-500.0,0.00010958,2]
[353948382,1740165041902,-1180.13,0.00010958,2]
[353948383,1740165041911,-844.88,0.00010958,2]
[353948384,1740165041926,-806.72,0.00010958,2]
[353948385,1740165041935,-500.0,0.00010958,2]
[353948386,1740165041944,-500.0,0.00010958,2]
[353948387,1740165041955,-537.23,0.00010958,2]
[353948388,1740165041965,-500.0,0.00010958,2]
[353948389,1740165041974,-500.0,0.00010958,2]
[353948390,1740165041984,-892.59,0.00010958,2]
[353948391,1740165041994,-500.0,0.00010958,2]
[353948392,1740165042004,-806.21,0.00010958,2]
[353948393,1740165042014,-572.73,0.00010958,2]
[353948394,1740165042023,-500.0,0.00010958,2]
[353948395,1740165042032,-500.0,0.00010958,2]
[353948396,1740165042040,-1563.66,0.00010958,2]
[353948397,1740165042049,-821.26,0.00010958,2]
[353948398,1740165042058,-500.0,0.00010958,2]
[353948399,1740165042068,-500.0,0.00010958,2]
[353948400,1740165042077,-301.10708469,0.00010958,2]
[353948401,1740165042087,-332.93097159,0.00010958,2]
[353948402,1740165042096,-500.0,0.00010958,2]
[353948403,1740165042106,-500.0,0.00010958,2]
[353948404,1740165042115,-500.0,0.00010958,2]
[353948405,1740165042124,-940.42,0.00010958,2]
[353948406,1740165042133,-500.0,0.00010958,2]
[353948407,1740165042142,-611.12,0.00010958,2]
[353948408,1740165042151,-500.0,0.00010958,2]
[353948409,1740165042161,-500.0,0.00010958,2]
[353948410,1740165042170,-500.0,0.00010958,2]
[353948411,1740165042180,-500.0,0.00010958,2]
[353948412,1740165042189,-500.0,0.00010958,2]
[353948413,1740165042198,-500.0,0.00010958,2]
[353948414,1740165042208,-1780.54,0.00010958,2]
[353948415,1740165042217,-500.0,0.00010958,2]
[353948416,1740165042227,-500.0,0.00010958,2]
[353948417,1740165042236,-500.0,0.00010958,2]
[353948418,1740165042245,-500.0,0.00010958,2]
[353948419,1740165042254,-991.67,0.00010958,2]
[353948420,1740165042264,-500.0,0.00010958,2]
[353948421,1740165042273,-500.0,0.00010958,2]
[353948422,1740165042282,-500.0,0.00010958,2]
[353948423,1740165042293,-528.9,0.00010958,2]
[353948424,1740165042302,-1033.27,0.00010958,2]
[353948425,1740165042312,-1402.78,0.00010958,2]
[353948426,1740165042322,-500.0,0.00010958,2]
[353948427,1740165042332,-196.51321,0.00010958,2]
[353948428,1740165042341,-500.0,0.00010958,2]
[353948429,1740165042351,-500.0,0.00010958,2]
[353948430,1740165042360,-500.0,0.00010958,2]
[353948431,1740165042370,-500.0,0.00010958,2]
[353948432,1740165042380,-500.0,0.00010958,2]
[353948433,1740165042389,-500.0,0.00010958,2]
[353948434,1740165042399,-600.36,0.00010958,2]
[353948435,1740165042409,-500.0,0.00010958,2]
[353948436,1740165042419,-882.31,0.00010958,2]
[353948437,1740165042429,-500.0,0.00010958,2]
[353948438,1740165042438,-500.0,0.00010958,2]
[353948439,1740165042448,-970.65,0.00010958,2]
[353948440,1740165042458,-500.0,0.00010958,2]
[353948441,1740165042467,-500.0,0.00010958,2]
[353948442,1740165042477,-500.0,0.00010958,2]
[353948443,1740165042486,-500.0,0.00010958,2]
[353948444,1740165042495,-500.0,0.00010958,2]
[353948445,1740165042503,-505.55222749,0.00010958,2]
[353948446,1740165042513,-500.0,0.00010958,2]
[353948447,1740165042523,-500.0,0.00010958,2]
[353948448,1740165042532,-500.0,0.00010958,2]
[353948449,1740165042541,-500.0,0.00010958,2]
[353948450,1740165042550,-550.33,0.00010958,2]
[353948451,1740165042560,-624.71,0.00010958,2]
[353948452,1740165042570,-500.0,0.00010958,2]
[353948453,1740165042579,-500.0,0.00010958,2]
[353948454,1740165042590,-500.0,0.00010958,2]
[353948455,1740165042600,-500.0,0.00010958,2]
[353948456,1740165042609,-500.0,0.00010958,2]
[353948457,1740165042619,-500.0,0.00010958,2]
[353948458,1740165042628,-500.0,0.00010958,2]
[353948459,1740165042637,-500.0,0.00010958,2]
[353948460,1740165042646,-1496.36,0.00010958,2]
[353948461,1740165042655,-500.0,0.00010958,2]
[353948462,1740165042665,-500.0,0.00010958,2]
[353948463,1740165042675,-500.0,0.00010958,2]
[353948464,1740165042684,-500.0,0.00010958,2]
[353948465,1740165042694,-500.0,0.00010958,2]
[353948466,1740165042703,-552.04,0.00010958,2]
[353948467,1740165042712,-500.0,0.00010958,2]
[353948468,1740165042722,-795.52,0.00010958,2]
[353948469,1740165042731,-500.0,0.00010958,2]
[353948470,1740165042741,-500.0,0.00010958,2]
[353948472,1740165042751,-529.57,0.00010958,2]
[353948474,1740165042760,-512.15,0.00010958,2]
[353948475,1740165042770,-500.0,0.00010958,2]
[353948476,1740165042779,-500.0,0.00010958,2]
[353948477,1740165042788,-500.0,0.00010958,2]
[353948478,1740165042798,-500.0,0.00010958,2]
[353948479,1740165042807,-500.0,0.00010958,2]
[353948480,1740165042816,-500.0,0.00010958,2]
[353948482,1740165042826,-500.0,0.00010958,2]
[353948484,1740165042837,-500.0,0.00010958,2]
[353948486,1740165042846,-500.0,0.00010958,2]
[353948488,1740165042855,-1185.38,0.00010958,2]
[353948490,1740165042865,-500.0,0.00010958,2]
[353948492,1740165042875,-500.0,0.00010958,2]
[353948494,1740165042884,-500.0,0.00010958,2]
[353948496,1740165042893,-500.0,0.00010958,2]
[353948497,1740165042903,-672.16,0.00010958,2]
[353948499,1740165042912,-535.75,0.00010958,2]
[353948501,1740165042925,-500.0,0.00010958,2]
[353948503,1740165042935,-500.0,0.00010958,2]
[353948505,1740165042944,-500.0,0.00010958,2]
[353948507,1740165042953,-500.0,0.00010958,2]
[353948508,1740165042964,-909.05,0.00010958,2]
[353948510,1740165042972,-500.0,0.00010958,2]
[353948512,1740165042982,-500.0,0.00010958,2]
[353948514,1740165042991,-500.0,0.00010958,2]
[353948515,1740165043001,-500.0,0.00010958,2]
[353948516,1740165043011,-500.0,0.00010958,2]
[353948517,1740165043020,-1301.85,0.00010958,2]
[353948518,1740165043030,-500.0,0.00010958,2]
[353948519,1740165043040,-500.0,0.00010958,2]
[353948520,1740165043049,-762.98,0.00010958,2]
[353948521,1740165043059,-500.0,0.00010958,2]
[353948522,1740165043068,-500.0,0.00010958,2]
[353948523,1740165043077,-1086.19,0.00010958,2]
[353948524,1740165043087,-628.04,0.00010958,2]
[353948525,1740165043097,-500.0,0.00010958,2]
[353948526,1740165043107,-500.0,0.00010958,2]
[353948527,1740165043117,-500.0,0.00010958,2]
[353948528,1740165043126,-1272.05,0.00010958,2]
[353948529,1740165043136,-441.15094868,0.00010958,2]
[353948530,1740165043146,-517.30485329,0.00010958,2]
[353948531,1740165043156,-2241.53,0.00010958,2]
[353948532,1740165043166,-500.0,0.00010958,2]
[353948533,1740165043176,-500.0,0.00010958,2]
[353948534,1740165043185,-500.0,0.00010958,2]
[353948535,1740165043194,-500.0,0.00010958,2]
[353948536,1740165043204,-670.58,0.00010958,2]
[353948537,1740165043214,-500.0,0.00010958,2]
[353948538,1740165043224,-500.0,0.00010958,2]
[353948539,1740165043233,-169.4664,0.00010958,2]
[353948540,1740165043243,-500.0,0.00010958,2]
[353948541,1740165043252,-500.0,0.00010958,2]
[353948542,1740165043261,-500.0,0.00010958,2]
[353948543,1740165043271,-500.0,0.00010958,2]
[353948544,1740165043280,-461.49036547,0.00010958,2]
[353948545,1740165043290,-500.0,0.00010958,2]
[353948546,1740165043299,-500.0,0.00010958,2]
[353948548,1740165043308,-500.0,0.00010958,2]
[353948550,1740165043318,-503.05098858,0.00010958,2]
[353948552,1740165043327,-968.09,0.00010958,2]
[353948554,1740165043338,-501.94,0.00010958,2]
[353948557,1740165043349,-1124.07,0.00010958,2]
[353948558,1740165043358,-500.0,0.00010958,2]
[353948560,1740165043367,-500.0,0.00010958,2]
[353948562,1740165043377,-500.0,0.00010958,2]
[353948565,1740165043387,-1924.61,0.00010958,2]
[353948566,1740165043396,-500.0,0.00010958,2]
[353948568,1740165043405,-500.0,0.00010958,2]